fUSD/lending_fUSD_20251212
["ID","MTS","AMOUNT","RATE_DAILY","PERIOD"]
[398383152,1765562655974,-158.43239575,0.00015476,2]
[398383153,1765562657625,-478.62704075,0.00015476,2]
[398383154,1765562660061,-232.50447191,0.00015476,2]
[398383155,1765562662665,-253.92228725,0.00015476,2]
[398383156,1765562664101,-370.5641563,0.00015476,2]
[398383157,1765562666850,-269.84571679,0.00015476,2]
[398383158,1765562668925,-166.66,0.00015476,2]
[398383159,1765562672579,-280.0,0.00015476,2]
[398383160,1765562674049,-195.0,0.00015476,2]
[398383161,1765562679698,-250.0,0.00015476,2]
[398383162,1765562681489,-157.49246949,0.00015476,2]
[398383163,1765562682934,-241.38114695,0.00015476,2]
[398383164,1765562685507,-321.41581975,0.00015476,2]
[398383165,1765562689182,-259.44261351,0.00015476,2]
[398383166,1765562739344,970.289436,0.00015397,2]
[398383167,1765562757115,1194.98379885,0.00015387,2]
[398383170,1765562897526,4465.50917798,0.00015375,2]
[398383171,1765562918803,608.59,0.00024658,30]
[398383172,1765562942496,1000.0,0.00015305,3]
[398383197,1765563019397,162.6368595,0.00015375,2]
[398383198,1765563025439,162.6368595,0.00015387,2]
[398383199,1765563030556,500.0,0.00015304,2]
[398383200,1765563031230,500.0,0.00015304,2]
[398383201,1765563031880,-500.0,0.00015441,2]
[398383202,1765563031890,-500.0,0.00015441,2]
[398383203,1765563031900,-300.0,0.00015475,2]
[398383204,1765563031910,-300.0,0.00015475,2]
[398383205,1765563031920,-1200.0,0.00015475,2]
[398383206,1765563031930,-300.0,0.00015475,2]
[398383207,1765563031940,-279.0,0.00015475,2]
[398383208,1765563031950,-195.0,0.00015475,2]
[398383209,1765563031960,-195.0,0.00015475,2]
[398383210,1765563031969,-211.25865445,0.00015475,2]
[398383211,1765563031979,-69130.81796821,0.00015476,2]
[398383212,1765563031989,-159.26485914,0.00015487,2]
[398383213,1765563031998,-160.97666175,0.00015487,2]
[398383214,1765563032008,-20629.9495134,0.00015487,2]
[398383215,1765563032017,-214.77835459,0.00015517,2]
[398383216,1765563032027,-575.56339971,0.00015517,2]
[398383217,1765563032036,-258.3238806,0.00015576,2]
[398383218,1765563032047,-10767.57234228,0.00015577,2]
[398383220,1765563032059,-300.0,0.00015578,2]
[398383221,1765563032068,-1000.0,0.00015578,2]
[398383222,1765563032078,-200.0,0.00015578,2]
[398383223,1765563032088,-1000.0,0.00015578,2]
[398383225,1765563032098,-250.0,0.00015578,2]
[398383226,1765563032107,-500.0,0.00015578,2]
[398383228,1765563032117,-250.0,0.00015578,2]
[398383230,1765563032128,-317.9341522,0.00015578,2]
[398383232,1765563032139,-500.0,0.00015578,2]
[398383234,1765563032148,-500.0,0.00015578,2]
[398383236,1765563032158,-1000.0,0.00015578,2]
[398383238,1765563032168,-500.0,0.00015578,2]
[398383241,1765563032177,-1000.0,0.00015578,2]
[398383244,1765563032186,-500.0,0.00015578,2]
[398383247,1765563032195,-500.0,0.00015578,2]
[398383250,1765563032205,-500.0,0.00015578,2]
[398383252,1765563032214,-151.0,0.00015578,2]
[398383254,1765563032223,-500.0,0.00015578,2]
[398383256,1765563032232,-151.0,0.00015578,2]
[398383258,1765563032242,-500.0,0.00015578,2]
[398383260,1765563032252,-151.0,0.00015578,2]
[398383262,1765563032261,-500.0,0.00015578,2]
[398383264,1765563032270,-151.0,0.00015578,2]
[398383266,1765563032279,-500.0,0.00015578,2]
[398383268,1765563032288,-151.0,0.00015578,2]
[398383270,1765563032297,-1000.0,0.00015578,2]
[398383272,1765563032307,-151.0,0.00015578,2]
[398383274,1765563032316,-1000.0,0.00015578,2]
[398383276,1765563032325,-500.0,0.00015578,2]
[398383278,1765563032335,-151.0,0.00015578,2]
[398383280,1765563032344,-1000.0,0.00015578,2]
[398383282,1765563032353,-500.0,0.00015578,2]
[398383283,1765563032365,-151.0,0.00015578,2]
[398383285,1765563032374,-1000.0,0.00015578,2]
[398383287,1765563032383,-151.0,0.00015578,2]
[398383290,1765563032393,-1000.0,0.00015578,2]
[398383292,1765563032402,-151.0,0.00015578,2]
[398383293,1765563032411,-1000.0,0.00015578,2]
[398383295,1765563032420,-151.0,0.00015578,2]
[398383297,1765563032430,-574.12855637,0.00015578,2]
[398383299,1765563032439,-1000.0,0.00015578,2]
[398383301,1765563032449,-151.0,0.00015578,2]
[398383302,1765563032459,-1000.0,0.00015578,2]
[398383303,1765563032469,-151.0,0.00015578,2]
[398383304,1765563032479,-609.88820432,0.00015578,2]
[398383321,1765563033034,-390.11179568,0.00015578,2]
[398383322,1765563033043,-151.0,0.00015578,2]
[398383323,1765563033055,-1000.0,0.00015578,2]
[398383324,1765563033064,-151.0,0.00015578,2]
[398383325,1765563033073,-1000.0,0.00015578,2]
[398383326,1765563033082,-151.0,0.00015578,2]
[398383327,1765563033091,-151.0,0.00015578,2]
[398383328,1765563033102,-500.0,0.00015578,2]
[398383329,1765563033111,-500.0,0.00015578,2]
[398383330,1765563033121,-500.0,0.00015578,2]
[398383331,1765563033130,-620.0,0.00015578,2]
[398383332,1765563033141,-459.15286162,0.00015578,2]
[398383333,1765563033151,-500.0,0.00015578,2]
[398383334,1765563033160,-500.0,0.00015578,2]
[398383335,1765563033169,-500.0,0.00015586,2]
[398383336,1765563033179,-500.0,0.00015586,2]
[398383337,1765563033188,-500.0,0.00015586,2]
[398383338,1765563033197,-500.0,0.00015586,2]
[398383339,1765563033207,-485.52312637,0.00015586,2]
[398383340,1765563033217,-500.0,0.00015586,2]
[398383341,1765563033227,-500.0,0.00015586,2]
[398383342,1765563033236,-500.0,0.00015586,2]
[398383343,1765563033246,-502.41193472,0.00015586,2]
[398383344,1765563033256,-500.0,0.00015586,2]
[398383345,1765563033265,-500.0,0.00015586,2]
[398383346,1765563033274,-500.0,0.00015586,2]
[398383347,1765563033284,-500.0,0.00015586,3]
[398383348,1765563033293,-500.0,0.00015586,4]
[398383349,1765563033302,-500.0,0.00015586,2]
[398383350,1765563033311,-500.0,0.00015586,2]
[398383351,1765563033321,-500.0,0.00015586,2]
[398383352,1765563033331,-500.0,0.00015586,2]
[398383353,1765563033340,-500.0,0.00015586,2]
[398383354,1765563033349,-1000.0,0.00015586,2]
[398383355,1765563033358,-846.73,0.00015586,2]
[398383356,1765563033368,-846.73,0.00015586,2]
[398383357,1765563033378,-846.73,0.00015586,2]
[398383358,1765563033387,-846.73,0.00015586,2]
[398383359,1765563033396,-2651.12790597,0.00015587,2]
[398383360,1765563033612,-0.42576671,0.00015587,2]
[398383361,1765563033624,-9838.84883034,0.00015587,2]
[398383362,1765563033635,-358.07202417,0.00015587,2]
[398383363,1765563033669,-5722.72505615,0.00015587,2]
[398383364,1765563033681,-400.0,0.00015587,2]
[398383365,1765563033692,-3086.38560984,0.00015587,2]
[398383366,1765563033703,-454.69711136,0.00015587,2]
[398383367,1765563033714,-1722.90736263,0.00015587,2]
[398383368,1765563033725,-64552.77744288,0.00015587,2]
[398383369,1765563033747,-3668.11136025,0.00015587,2]
[398383370,1765563033759,-2000.0,0.00015587,2]
[398383371,1765563033770,-647.48057624,0.00015587,2]
[398383372,1765563033820,150.0,0.00015304,2]
[398383381,1765563037954,-151.0,0.00015578,2]
[398383382,1765563037964,-203.0347142,0.00015587,2]
[398383383,1765563037978,-1038.15817152,0.00015587,2]
[398383431,1765563039913,-904.51,0.00015587,2]
[398383432,1765563039966,-7206.73224725,0.00015587,2]
[398383433,1765563039979,-543.74,0.00015587,2]
[398383434,1765563039990,-38683.1044579,0.00015587,2]
[398383435,1765563040021,-142657.29440609,0.00015587,2]
[398383436,1765563040031,-1526.9334841,0.00015587,2]
[398383437,1765563040040,-200.0,0.00015587,2]
[398383438,1765563040051,-152.0,0.00015587,2]
[398383439,1765563040063,-160.78319061,0.00015587,2]
[398383440,1765563040072,-152.0,0.00015587,2]
[398383441,1765563040082,-158.01599262,0.00015587,2]
[398383442,1765563040091,-383.70893314,0.00015587,2]
[398383443,1765563040102,-278.55670917,0.00015587,2]
[398383444,1765563040112,-500.0,0.00015687,2]
[398383445,1765563040122,-500.0,0.00015687,2]
[398383446,1765563040133,-500.0,0.00015687,2]
[398383447,1765563040142,-506.09206684,0.00015687,2]
[398383448,1765563040152,-502.97441919,0.00015687,2]
[398383449,1765563040162,-500.0,0.00015687,2]
[398383450,1765563040172,-500.0,0.00015687,2]
[398383451,1765563040181,-166.56,0.00015708,2]
[398383452,1765563040191,-500.0,0.00015715,2]
[398383453,1765563040201,-343.24107785,0.00015715,2]
[398383454,1765563040210,-200.0,0.00015743,2]
[398383455,1765563040220,-20629.9495134,0.00015755,2]
[398383456,1765563040229,-700.20853172,0.00015832,2]
[398383457,1765563040239,-500.0,0.00015852,2]
[398383458,1765563040248,-160.97666175,0.00015889,2]
[398383459,1765563040258,-200.0,0.000159,2]
[398383460,1765563040268,-550.11215799,0.000159,2]
[398383461,1765563040281,-535.11278396,0.00015924,2]
[398383463,1765563040291,-500.0,0.00015989,2]
[398383465,1765563040300,-500.0,0.00015999,2]
[398383467,1765563040310,-500.0,0.00015999,2]
[398383468,1765563040319,-500.0,0.00015999,2]
[398383469,1765563040329,-500.0,0.00015999,2]
[398383470,1765563040338,-500.0,0.00015999,5]
[398383471,1765563040347,-846.73,0.00015999,2]
[398383472,1765563040357,-125190.26927953,0.00016,4]
[398383473,1765563040366,-20629.9495134,0.00016023,2]
[398383474,1765563040376,-7282.7791404,0.00016025,2]
[398383475,1765563040386,-200.0,0.00016059,2]
[398383476,1765563040396,-164.09,0.00016079,2]
[398383477,1765563040405,-595.37131296,0.00016126,2]
[398383478,1765563040415,-500.0,0.00016126,2]
[398383479,1765563040425,-161.46162711,0.00016175,2]
[398383480,1765563040434,-250.72416972,0.00016175,2]
[398383481,1765563040443,-700.20853172,0.00016176,2]
[398383482,1765563040454,-535.11278393,0.00016253,2]
[398383483,1765563040463,-500.0,0.00016263,2]
[398383484,1765563040473,-159.26485912,0.00016291,2]
[398383485,1765563040484,-160.97666175,0.00016291,2]
[398383486,1765563040494,-20629.9495134,0.00016291,2]
[398383487,1765563040503,-532.08835806,0.000164,2]
[398383488,1765563040513,-500.0,0.00016438,2]
[398383492,1765563040796,-500.0,0.00016438,2]
[398383493,1765563040808,-500.0,0.00016438,2]
[398383494,1765563040818,-500.0,0.00016438,2]
[398383495,1765563040827,-500.0,0.00016438,2]
[398383496,1765563040836,-500.0,0.00016438,2]
[398383497,1765563040846,-500.0,0.00016438,2]
[398383498,1765563040855,-484.06932722,0.00016438,2]
[398383499,1765563040865,-500.0,0.00016438,2]
[398383500,1765563040874,-500.0,0.00016438,2]
[398383501,1765563040883,-500.0,0.00016438,2]
[398383502,1765563040892,-500.0,0.00016438,2]
[398383503,1765563040902,-500.0,0.00016438,2]
[398383504,1765563040912,-500.0,0.00016438,2]
[398383505,1765563040923,-500.0,0.00016438,2]
[398383506,1765563040933,-500.0,0.00016438,2]
[398383507,1765563040943,-500.0,0.00016438,2]
[398383508,1765563040952,-500.0,0.00016438,2]
[398383509,1765563040965,-4532.03,0.00016438,2]
[398383510,1765563040975,-272.91,0.00016464,2]
[398383511,1765563040985,-526.66866281,0.00016473,2]
[398383512,1765563040994,-500.0,0.00016473,2]
[398383513,1765563041003,-500.0,0.00016473,2]
[398383514,1765563041012,-500.0,0.00016473,2]
[398383515,1765563041022,-500.0,0.00016473,2]
[398383516,1765563041031,-406.92548844,0.00016473,2]
[398383517,1765563041040,-500.0,0.00016473,2]
[398383518,1765563041050,-500.0,0.00016473,2]
[398383519,1765563041063,-624.89817472,0.00016473,2]
[398383520,1765563041072,-500.0,0.00016473,2]
[398383521,1765563041081,-500.0,0.00016473,2]
[398383522,1765563041090,-500.0,0.00016473,2]
[398383523,1765563041101,-500.0,0.00016473,2]
[398383524,1765563041110,-500.0,0.00016473,2]
[398383525,1765563041121,-500.0,0.00016473,2]
[398383526,1765563041130,-500.0,0.00016473,2]
[398383527,1765563041140,-700.20853172,0.00016521,2]
[398383528,1765563041149,-20629.9495134,0.00016559,2]
[398383529,1765563041159,-535.11278393,0.00016583,2]
[398383530,1765563041168,-510.0,0.00016605,2]
[398383531,1765563041178,-617.40005154,0.00016674,2]
[398383532,1765563041187,-160.97666175,0.00016694,2]
[398383533,1765563041196,-20629.9495134,0.00016828,2]
[398383534,1765563041205,-700.20853172,0.00016866,2]
[398383535,1765563041215,-535.11278393,0.00016912,2]
[398383536,1765563041224,-420.0,0.00016928,2]
[398383537,1765563041233,-420.0,0.00016928,2]
[398383538,1765563041242,-311.1,0.00016947,2]
[398383539,1765563041252,-689.66878,0.00016947,2]
[398383540,1765563041261,-1600.0,0.00016986,2]
[398383541,1765563041271,-40494.15,0.00016986,2]
[398383542,1765563041280,-500.0,0.00016999,2]
[398383543,1765563041289,-500.0,0.00016999,2]
[398383544,1765563041299,-500.0,0.00016999,2]
[398383545,1765563041308,-282.80390472,0.00016999,2]
[398383546,1765563041317,-500.0,0.00016999,2]
[398383547,1765563041327,-500.0,0.00016999,2]
[398383548,1765563041336,-520.37,0.00016999,6]
[398383549,1765563041345,-846.73,0.00016999,2]
[398383550,1765563041358,-1833.0,0.00017,2]
[398383551,1765563041369,-24967.28438905,0.00017,2]
[398383552,1765563041378,-253757.48108405,0.00017,2]
[398383553,1765563041387,-160.0,0.00017,2]
[398383554,1765563041397,-1164.0,0.00017,2]
[398383555,1765563041406,-250.0,0.00017,2]
[398383556,1765563041415,-166.56,0.00017004,2]
[398383557,1765563041424,-846.73,0.0001702,2]
[398383558,1765563041434,-500.0,0.00017021,2]
[398383559,1765563041443,-1000.0,0.00017021,2]
[398383560,1765563041453,-1000.0,0.00017021,2]
[398383561,1765563041462,-1000.0,0.00017021,2]
[398383562,1765563041471,-1000.0,0.00017021,2]
[398383563,1765563041481,-1000.0,0.00017021,2]
[398383564,1765563041491,-1000.0,0.00017021,2]
[398383565,1765563041500,-500.0,0.00017021,2]
[398383566,1765563041509,-1000.0,0.00017021,2]
[398383567,1765563041518,-1000.0,0.00017021,2]
[398383568,1765563041528,-1000.0,0.00017021,2]
[398383569,1765563041537,-1000.0,0.00017021,2]
[398383570,1765563041547,-1000.0,0.00017021,2]
[398383571,1765563041557,-266.62048063,0.00017023,2]
[398383572,1765563041567,-256.73367945,0.00017023,2]
[398383573,1765563041577,-300.0,0.00017023,2]
[398383574,1765563041587,-5112.53036941,0.00017023,3]
[398383575,1765563041596,-300.0,0.00017023,2]
[398383576,1765563041606,-300.0,0.00017023,2]
[398383577,1765563041616,-395.62095253,0.00017023,2]
[398383578,1765563041625,-195.0,0.00017023,2]
[398383579,1765563041635,-250.0,0.00017023,2]
[398383580,1765563041645,-300.0,0.00017023,2]
[398383581,1765563041654,-200.0,0.00017023,2]
[398383582,1765563041663,-200.0,0.00017023,2]
[398383583,1765563041672,-200.0,0.00017023,2]
[398383584,1765563041681,-200.0,0.00017023,2]
[398383585,1765563041691,-201.45815707,0.00017023,2]
[398383586,1765563041700,-300.0,0.00017023,2]
[398383587,1765563041709,-195.0,0.00017023,2]
[398383588,1765563041719,-251.71318495,0.00017023,2]
[398383589,1765563041728,-195.0,0.00017023,2]
[398383590,1765563041740,-160.26201676,0.00017067,2]
[398383591,1765563041749,-159.26485912,0.00017096,2]
[398383592,1765563041759,-160.97666175,0.00017096,2]
[398383593,1765563041768,-20629.9495134,0.00017096,2]
[398383594,1765563041778,-617.068,0.00017115,2]
[398383595,1765563041787,-1324.0,0.00017115,2]
[398383596,1765563041797,-1606.0,0.00017115,2]
[398383597,1765563041806,-3449.0,0.00017115,2]
[398383598,1765563041816,-689.81,0.00017115,2]
[398383599,1765563041826,-1260.9,0.00017115,2]
[398383600,1765563041836,-910.0,0.00017115,2]
[398383601,1765563041846,-1196.0,0.00017115,2]
[398383602,1765563041855,-4795.0,0.00017115,2]
[398383603,1765563041864,-310.939,0.00017115,2]
[398383604,1765563041875,-6519.0,0.00017115,2]
[398383605,1765563041884,-1000.0,0.00017118,2]
[398383606,1765563041894,-164.09,0.00017151,2]
[398383607,1765563041904,-700.20853172,0.00017211,2]
[398383608,1765563041913,-640.24385345,0.00017222,2]
[398383609,1765563041923,-160.26201676,0.00017233,2]
[398383610,1765563041932,-535.11278393,0.00017241,2]
[398383611,1765563041942,-168.0,0.00017301,2]
[398383612,1765563041952,-150.0,0.00017354,2]
[398383613,1765563041961,-185.037,0.00017354,2]
[398383614,1765563041971,-150.71,0.00017354,2]
[398383615,1765563041980,-150.0,0.00017354,2]
[398383616,1765563041990,-151.077,0.00017354,2]
[398383617,1765563042000,-150.0,0.00017354,2]
[398383618,1765563042010,-150.0,0.00017354,2]
[398383619,1765563042019,-151.0,0.00017354,2]
[398383620,1765563042028,-150.124,0.00017354,2]
[398383621,1765563042039,-20629.9495134,0.00017364,2]
[398383622,1765563042049,-160.26201676,0.000174,2]
[398383623,1765563042062,-168.0,0.00017412,2]
[398383624,1765563042072,-500.0,0.00017425,2]
[398383625,1765563042082,-168.0,0.00017454,2]
[398383626,1765563042091,-160.97666175,0.00017498,2]
[398383627,1765563042102,-700.20853172,0.00017555,2]
[398383628,1765563042111,-160.26201676,0.00017567,2]
[398383629,1765563042123,-1366.66868251,0.00017568,2]
[398383630,1765563042134,-503.66022002,0.00017568,2]
[398383631,1765563042144,-501.42980184,0.00017568,2]
[398383632,1765563042153,-1211.96165327,0.00017568,2]
[398383633,1765563042164,-1500.0,0.00017568,2]
[398383634,1765563042173,-1500.0,0.00017568,2]
[398383635,1765563042182,-1502.73659704,0.00017568,2]
[398383636,1765563042191,-1500.0,0.00017568,2]
[398383637,1765563042201,-535.11278393,0.00017571,2]
[398383638,1765563042211,-168.0,0.0001758,2]
[398383639,1765563042220,-168.0,0.00017629,2]
[398383640,1765563042229,-20629.9495134,0.00017632,2]
[398383641,1765563042239,-851.95827054,0.0001764,2]
[398383642,1765563042248,-19721.5634275,0.00017643,2]
[398383643,1765563042258,-160.26201676,0.00017733,2]
[398383644,1765563042267,-487.2952057,0.0001776,2]
[398383645,1765563042277,-663.93287602,0.0001777,2]
[398383646,1765563042286,-63891.1197429,0.0001777,2]
[398383647,1765563042295,-866.0,0.00017812,2]
[398383648,1765563042304,-846.73,0.00017899,2]
[398383649,1765563042314,-535.11278393,0.000179,2]
[398383650,1765563042323,-700.20853172,0.000179,2]
[398383651,1765563042332,-159.26485912,0.000179,2]
[398383652,1765563042342,-160.97666175,0.000179,2]
[398383653,1765563042351,-1231.38211228,0.000179,2]
[398383654,1765563042361,-160.26201676,0.000179,2]
[398383655,1765563042373,-20629.9495134,0.000179,2]
[398383656,1765563042382,-1184.49590144,0.000179,2]
[398383657,1765563042392,-4655.8868863,0.000179,2]
[398383658,1765563042401,-508.59876569,0.000179,2]
[398383659,1765563042410,-2039.0,0.00017973,2]
[398383660,1765563042420,-371.32427974,0.00017973,2]
[398383661,1765563042429,-500.0,0.00017973,2]
[398383662,1765563042439,-501.36688976,0.00017973,2]
[398383663,1765563042448,-500.0,0.00017973,2]
[398383664,1765563042458,-500.0,0.00017973,2]
[398383665,1765563042467,-176.39513176,0.00017973,2]
[398383666,1765563042477,-500.0,0.00017973,2]
[398383667,1765563042486,-500.0,0.00017973,2]
[398383668,1765563042495,-500.0,0.00017973,2]
[398383669,1765563042513,-500.43123012,0.00017973,2]
[398383670,1765563042525,-344.16807227,0.00017973,2]
[398383671,1765563042534,-207.2199628,0.00017973,2]
[398383672,1765563042544,-500.0,0.00017973,2]
[398383673,1765563042554,-500.0,0.00017973,2]
[398383674,1765563042564,-500.43707985,0.00017973,2]
[398383675,1765563042574,-500.0,0.00017973,2]
[398383676,1765563042583,-500.0,0.00017973,2]
[398383677,1765563042593,-500.0,0.00017973,2]
[398383678,1765563042603,-500.0,0.00017973,2]
[398383679,1765563042612,-500.0,0.00017973,2]
[398383680,1765563042623,-500.0,0.00017973,2]
[398383681,1765563042632,-435.97691614,0.00017973,2]
[398383682,1765563042642,-391.22772937,0.00017973,2]
[398383683,1765563042652,-500.0,0.00017973,2]
[398383684,1765563042677,-168.0,0.00017981,2]
[398383685,1765563042687,-487.2952057,0.0001799,2]
[398383687,1765563042696,-487.2952057,0.0001799,2]
[398383688,1765563042706,-168.0,0.00017994,2]
[398383689,1765563042715,-500.0,0.00017998,2]
[398383690,1765563042725,-300.0,0.00017999,2]
[398383691,1765563042734,-500.0,0.00017999,2]
[398383692,1765563042744,-500.0,0.00017999,2]
[398383694,1765563042753,-500.0,0.00017999,2]
[398383695,1765563042763,-500.0,0.00017999,2]
[398383696,1765563042772,-500.0,0.00017999,2]
[398383697,1765563042782,-500.0,0.00017999,2]
[398383698,1765563042791,-565.32556047,0.00017999,2]
[398383699,1765563042801,-500.0,0.00017999,2]
[398383700,1765563042810,-500.0,0.00017999,2]
[398383701,1765563042820,-500.0,0.00017999,2]
[398383702,1765563042829,-500.0,0.00017999,2]
[398383703,1765563042839,-500.0,0.00017999,2]
[398383704,1765563042848,-500.0,0.00017999,2]
[398383705,1765563042858,-500.0,0.00017999,2]
[398383706,1765563042868,-519.30985649,0.00017999,2]
[398383707,1765563042878,-300.0,0.00017999,2]
[398383708,1765563042887,-189.75866884,0.00017999,2]
[398383709,1765563042897,-846.73,0.00017999,2]
[398383710,1765563042907,-846.73,0.00017999,2]
[398383712,1765563042917,-846.73,0.00017999,2]
[398383713,1765563042926,-846.73,0.00017999,2]
[398383714,1765563042934,-846.73,0.00017999,2]
[398383715,1765563042943,-846.73,0.00017999,2]
[398383716,1765563042953,-846.73,0.00017999,2]
[398383717,1765563042963,-846.73,0.00017999,2]
[398383718,1765563042973,-846.73,0.00017999,2]
[398383719,1765563042983,-846.73,0.00017999,2]
[398383720,1765563042993,-846.73,0.00017999,2]
[398383721,1765563043003,-846.73,0.00017999,2]
[398383722,1765563043012,-846.73,0.00017999,2]
[398383723,1765563043022,-846.73,0.00017999,2]
[398383724,1765563043031,-846.73,0.00017999,2]
[398383725,1765563043041,-846.79701498,0.00017999,2]
[398383726,1765563043051,-12787.37293731,0.00017999,2]
[398383727,1765563043064,-216782.43919091,0.00018,2]
[398383730,1765563043446,-91615.23356955,0.00018,2]
[398383731,1765563043459,-707.12359549,0.00018,2]
[398383732,1765563043471,-1201.2,0.00018,2]
[398383734,1765563045219,-255.80595542,0.00016438,2]
[398383735,1765563045229,-563.0,0.00017115,2]
[398383736,1765563045238,-1001.15218458,0.00018,2]
[398383737,1765563045346,-3845.03797779,0.00018,2]
[398383738,1765563045357,-621855.34660243,0.00018,2]
[398383740,1765563046008,-30781.2390792,0.00018,2]
[398383758,1765563142965,760000.0,0.00015376,2]
[398383763,1765563220777,1273.0895,0.00015387,2]
[398383764,1765563291819,760000.0,0.00015376,2]
[398383765,1765563426235,200.0,0.00014957,2]
[398383766,1765563426851,207.4,0.00014957,2]
[398383767,1765563427742,215.0738,0.00014957,2]
[398383768,1765563428075,219.85877281,0.00014957,2]
[398383769,1765563446445,10000.0,0.000154,10]
[398383770,1765563453684,10000.0,0.000154,10]
[398383771,1765563461956,10000.0,0.000154,10]
[398383772,1765563470078,10000.0,0.000154,10]
[398383773,1765563479518,10000.0,0.000154,10]
[398383774,1765563497229,6900.0,0.000154,10]
[398383775,1765563521028,1852.42,0.00014828,2]
[398383784,1765564069967,907.53,8.161e-05,2]
[398383785,1765564070196,907.53,8.591e-05,2]
[398383786,1765564070401,907.53,9.02e-05,2]
[398383787,1765564070596,907.53,9.45e-05,2]
[398383788,1765564070811,907.53,9.879e-05,2]
[398383789,1765564071013,907.53,0.00010309,2]
[398383790,1765564071218,907.53,0.00010738,2]
[398383791,1765564071428,907.53,0.00011168,2]
[398383792,1765564071632,907.53,0.00011597,2]
[398383793,1765564071842,907.53,0.00012027,2]
[398383794,1765564072063,907.53,0.00012456,2]
[398383795,1765564072261,907.53,0.00012886,2]
[398383796,1765564072467,907.53,0.00013316,2]
[398383797,1765564072683,907.53,0.00013745,2]
[398383798,1765564073507,907.53,0.00014175,2]
[398383799,1765564073554,907.53,0.00014604,2]
[398383800,1765564073600,907.53,0.00015034,2]
[398383801,1765564082352,-503.72976873,0.00015463,2]
[398383802,1765564085937,-279.0,0.00015463,2]
[398383805,1765564094298,1007.003693,0.00015385,2]
[398383807,1765564142482,1000.0,0.00015399,3]
[398383813,1765564204927,-164.82065278,0.00015463,2]
[398383822,1765564232067,-114.17934722,0.00015463,2]
[398383823,1765564232077,-195.0,0.00015463,2]
[398383824,1765564232086,-96.77855162,0.00015463,2]
[398383825,1765564232124,-28.02167965,0.00015463,2]
[398383826,1765564232134,-195.0,0.0001547,2]
[398383827,1765564232144,-250.0,0.00015471,2]
[398383828,1765564232153,-271.0,0.00015475,2]
[398383829,1765564232162,-599.60298507,0.00015478,2]
[398383830,1765564232171,-577.8037,0.00015487,2]
[398383831,1765564232180,-300.0,0.00015576,2]
[398383832,1765564232188,-1200.0,0.00015576,2]
[398383833,1765564232198,-200.0,0.00015577,2]
[398383834,1765564232206,-574.12855637,0.00015577,2]
[398383835,1765564232215,-1000.0,0.00015577,2]
[398383836,1765564232224,-1000.0,0.00015577,2]
[398383837,1765564232233,-151.0,0.00015577,2]
[398383838,1765564232242,-151.0,0.00015577,2]
[398383839,1765564232251,-500.0,0.00015577,2]
[398383840,1765564232259,-300.0,0.00015577,2]
[398383841,1765564232268,-500.0,0.00015586,2]
[398383842,1765564232277,-500.0,0.00015586,2]
[398383843,1765564232286,-500.0,0.00015586,2]
[398383844,1765564232295,-166.66,0.00015832,2]
[398383845,1765564232304,-907.53,0.00015893,2]
[398383846,1765564232313,-1000.0,0.00015998,3]
[398383847,1765564232323,-500.0,0.00015999,2]